Workbook

Sheet 现金预算
A1: 现金预算
A2: 单位：元
A3: 季度 | B3: 1 | C3: 2 | D3: 3 | E3: 4 | F3: 全年
A4: 期初现金余额 | B4: 15000 | C4: =B21 -> -17189829.74 | D4: =C21 -> 19328372.32 | E4: =D21 -> -315970088.7 | F4: 15000
A5: 加：销货现金收入 | B5: =[1]销售预算!$B$14+[1]销售预算!$B$15 -> 160600 | C5: =[1]销售预算!$C$15+[1]销售预算!$C$16 -> 201890 | D5: =[1]销售预算!$D$16+[1]销售预算!$D$17 -> 183330 | E5: =[1]销售预算!$E$17+[1]销售预算!$E$18 -> 195820 | F5: =[1]销售预算!$F$19 -> 741640
A6: 可供使用的现金 | B6: =B4+B5 -> 175600 | C6: =SUM(C4:C5) -> -16987939.74 | D6: =SUM(D4:D5) -> 19511702.32 | E6: =SUM(E4:E5) -> -315774268.7 | F6: =SUM(F4:F5) -> 756640
A7: 减：各项支出
A8: 直接材料 | B8: =[1]直接材料和采购预算!$B$24+[1]直接材料和采购预算!$B$25 -> 17308334.24 | C8: =[1]直接材料和采购预算!$C$25+[1]直接材料和采购预算!$C$26 -> 23587528.44 | D8: =[1]直接材料和采购预算!$D$26+[1]直接材料和采购预算!$D$27 -> 21933940.52 | E8: =[1]直接材料和采购预算!$E$27+[1]直接材料和采购预算!$E$28 -> 19201589.4 | F8: =[1]直接材料和采购预算!$F$29 -> 82031392.6
A9: 直接人工 | B9: =[1]直接人工成本预算!$B$7 -> 32148 | C9: =[1]直接人工成本预算!$C$7 -> 24132 | D9: =[1]直接人工成本预算!$D$7 -> 25728 | E9: =[1]直接人工成本预算!$E$7 -> 27180 | F9: =[1]直接人工成本预算!$F$7 -> 109188
A10: 制造费用 | B10: =[1]制造费用预算!$B$18 -> 16635 | C10: =[1]制造费用预算!$C$18 -> 13095 | D10: =[1]制造费用预算!$D$18 -> 13810 | E10: =[1]制造费用预算!$E$18 -> 14465 | F10: =[1]制造费用预算!$F$18 -> 57547
A11: 销售及管理费用 | B11: =[1]销售及管理费用预算!$B$15 -> 3812.5 | C11: =[1]销售及管理费用预算!$B$15 -> 3812.5 | D11: =[1]销售及管理费用预算!$B$15 -> 3812.5 | E11: =[1]销售及管理费用预算!$B$15 -> 3812.5 | F11: =[1]销售及管理费用预算!$B$14 -> 15250
A12: 所得税 | B12: 4500 | C12: 4500 | D12: 4500 | E12: 4500 | F12: =SUM(B12:E12) -> 18000
A13: 购买设备 | C13: 225050620
A14: 股利 | C14: 15000000 | E14: 15000000
A15: 支出合计 | B15: =SUM(B8:B14) -> 17365429.74 | C15: =SUM(C8:C14) -> 263683687.9 | D15: =SUM(D8:D14) -> 21981791.02 | E15: =SUM(E8:E14) -> 34251546.9 | F15: =SUM(F8:F14) -> 82231377.6
A16: 现金多余或不足 | B16: =B6-B15 -> -17189829.74 | C16: =C6-C15 -> -280671627.7 | D16: =D6-D15 -> -2470088.7 | E16: =E6-E15 -> -350025815.6 | F16: =F6-F15 -> -81474737.6
A17: 向银行借款 | C17: 300000000 | F17: =SUM(B17:E17) -> 300000000
A18: 还银行借款 | D18: =C17 -> 300000000 | F18: =SUM(B18:E18) -> 300000000
A19: 借款利息 | D19: 13500000 | F19: 13500000
A20: 合计 | D20: =D18+D19 -> 313500000 | F20: =F18+F19-F17 -> 13500000
A21: 期末现金余额 | B21: =B16 -> -17189829.74 | C21: =C16+C17 -> 19328372.32 | D21: =D16-D20 -> -315970088.7 | E21: =E16 -> -350025815.6 | F21: =F16-F20 -> -94974737.6
